bitfinex/quotes_SOLUSD_20240821
["timestamp","ask_amount","ask_price","bid_price","bid_amount"]
[1724215132185,15.946,143.0,142.93,45.12549]
[1724215134498,14.17,142.99,142.93,45.0]
[1724215134700,1.0,142.98,142.93,45.0]
[1724215135203,13.17,142.97,142.92,6.6098]
[1724215135387,1.0,142.96,142.89,12.6193]
[1724215135593,1.0,142.96,142.9,20.0]
[1724215135794,1.0,142.96,142.89,25.39376292]
[1724215136510,1.0,142.96,142.89,25.39338875]
[1724215136812,1.0,142.96,142.9,45.12549]
[1724215137181,13.17,142.97,142.9,45.12549]
[1724215137687,13.17,142.98,142.9,58.29549]
[1724215139613,13.17,142.99,142.9,58.29549]
[1724215140109,13.17,142.99,142.91,0.12549]
[1724215144110,15.946,143.0,142.91,0.12549]
[1724215144297,13.17,142.99,142.91,0.12549]
[1724215145108,13.17,142.99,142.91,1.52457026]
[1724215145300,13.17,142.99,142.92,0.12549]
[1724215145817,13.17,142.99,142.92,45.12549]
[1724215146319,13.17,142.99,142.93,1.39906698]
[1724215147017,13.17,142.99,142.92,45.12549]
[1724215148188,1.0,142.98,142.93,45.0]
[1724215148395,1.0,142.98,142.92,0.12549]
[1724215149290,13.17,142.95,142.89,19.1132]
[1724215149497,1.0,142.94,142.89,19.1132]
[1724215150412,13.17,142.95,142.89,19.1132]
[1724215150916,1.0,142.94,142.89,19.1132]
[1724215151411,13.17,142.95,142.89,19.1132]
[1724215152314,13.17,142.95,142.89,6.4939]
[1724215152620,1.0,142.94,142.89,6.4939]
[1724215153004,13.17,142.95,142.89,6.4939]
[1724215153319,22.2653,143.0,142.9,45.0]
[1724215153498,13.17,142.98,142.9,45.0]
[1724215153826,1.0,142.97,142.9,45.0]
[1724215159503,13.17,142.96,142.9,45.0]
[1724215159804,1.0,142.95,142.9,45.0]
[1724215160005,1.0,142.95,142.89,6.4939]
[1724215161108,13.17,142.97,142.89,7.89334671]
[1724215164523,13.17,142.97,142.9,46.39933474]
[1724215169628,13.17,142.97,142.91,0.12549]
[1724215169828,13.17,142.99,142.91,0.12549]
[1724215170638,13.17,142.99,142.91,1.52465605]
[1724215176451,15.946,143.0,142.91,1.52465605]
[1724215176652,13.17,142.99,142.91,1.52465605]
[1724215177331,13.17,142.99,142.91,0.12549]
[1724215177649,13.17,142.99,142.91,0.25098]
[1724215181148,1.0,142.98,142.91,0.25098]
[1724215181336,13.17,142.97,142.9,58.17]
[1724215181540,1.0,142.96,142.9,58.17]
[1724215186731,1.0,142.95,142.89,19.1132]
[1724215186957,13.17,142.97,142.89,19.1132]
[1724215187469,13.17,142.97,142.89,25.39413672]
[1724215187671,13.17,142.97,142.89,19.1132]
[1724215187974,13.17,142.97,142.89,25.39413672]
[1724215188188,13.17,142.97,142.89,19.1132]
[1724215188189,1.0,142.96,142.89,19.1132]
[1724215188474,1.0,142.95,142.89,25.39413672]
[1724215188772,13.17,142.97,142.89,19.1132]
[1724215188955,13.17,142.97,142.89,25.81448339]
[1724215189267,13.17,142.97,142.89,19.53354667]
[1724215189570,13.17,142.97,142.89,25.81448339]
[1724215189867,13.17,142.97,142.89,19.1132]
[1724215190045,13.17,142.97,142.89,25.39413672]
[1724215190571,13.17,142.97,142.89,25.39418687]
[1724215190748,13.17,142.97,142.9,46.39921802]
[1724215194065,13.17,142.97,142.9,45.0]
[1724215196183,22.0376,143.0,142.91,0.12549]
[1724215196363,13.17,142.99,142.91,14.69393802]
[1724215196558,13.17,142.99,142.92,45.0]
[1724215198860,1.0,142.98,142.92,45.0]
[1724215199586,13.17,142.99,142.92,45.0]
[1724215200980,1.0,142.98,142.92,45.0]
[1724215201363,13.17,142.99,142.92,45.0]
[1724215202960,1.0,142.98,142.92,45.0]
[1724215203280,13.17,142.99,142.92,45.0]
[1724215205266,1.0,142.98,142.92,45.0]
[1724215206973,13.17,142.99,142.92,45.0]
[1724215211174,13.17,142.99,142.91,45.12549]
[1724215211175,1.0,142.98,142.91,45.12549]
[1724215211373,1.0,142.98,142.9,45.12549]
[1724215213787,13.17,142.99,142.9,45.12549]
[1724215214102,13.17,142.99,142.91,6.28145961]
[1724215214402,13.17,142.99,142.92,45.0]
[1724215214787,13.17,142.99,142.93,1.39914893]
[1724215216099,1.0,142.98,142.92,45.0]
[1724215217105,13.17,142.99,142.92,45.0]
[1724215217267,13.17,142.99,142.91,45.0]
[1724215217474,1.0,142.98,142.91,45.0]
[1724215217682,13.17,142.99,142.92,1.39910578]
[1724215218096,13.17,142.99,142.91,45.0]
[1724215218600,15.946,143.0,142.92,1.39910082]
[1724215218900,29.116,143.0,142.92,1.39910082]
[1724215224802,29.116,143.0,142.91,45.0]
[1724215225701,13.17,142.98,142.91,45.0]
[1724215225913,1.0,142.97,142.91,45.0]
[1724215226084,1.0,142.97,142.9,45.12549]
[1724215226286,1.0,142.97,142.91,6.28304892]
[1724215226590,1.0,142.97,142.92,45.0]
[1724215229581,1.0,142.97,142.9,0.12549]
[1724215229795,1.0,142.97,142.9,65.25098]
[1724215230594,1.0,142.97,142.9,45.12549]
[1724215230903,15.3669,142.96,142.9,45.12549]
[1724215231111,1.0,142.95,142.9,45.12549]
[1724215233284,15.3669,142.96,142.9,45.12549]
[1724215235088,1.0,142.95,142.9,45.12549]
[1724215235982,1.0,142.95,142.9,45.0]
[1724215236187,13.17,142.94,142.86,10.34403885]
[1724215236382,1.0,142.93,142.87,6.28550861]
[1724215236605,1.0,142.93,142.88,6.28550861]
[1724215236887,1.0,142.93,142.86,10.34403885]
[1724215237088,1.0,142.93,142.87,6.28556134]
[1724215237293,1.0,142.93,142.88,6.28556134]
[1724215237521,1.0,142.93,142.87,6.28556134]
[1724215237807,1.0,142.93,142.88,6.2855288]
[1724215237991,1.0,142.93,142.87,6.2855288]
[1724215238186,13.17,142.94,142.86,6.2855288]
[1724215238389,13.17,142.94,142.87,45.0]
[1724215238692,13.17,142.94,142.86,45.0]
[1724215239295,6.0255,142.95,142.87,13.17]
[1724215239602,6.0255,142.95,142.88,0.12549]
[1724215239805,6.0255,142.95,142.88,45.12549]
[1724215240385,6.0255,142.95,142.89,1.39944794]
[1724215241015,6.0255,142.95,142.88,45.12549]
[1724215241512,6.0255,142.95,142.89,1.39945043]
[1724215241705,6.0255,142.95,142.88,45.12549]
[1724215242711,1.0,142.94,142.88,45.12549]
[1724215243202,6.0255,142.95,142.88,45.12549]
[1724215244218,7.0255,142.95,142.88,45.12549]
[1724215245110,6.0255,142.95,142.88,45.12549]
[1724215252534,1.0,142.94,142.88,45.12549]
[1724215253128,6.0255,142.95,142.88,45.0]
[1724215253805,14.17,142.94,142.88,45.0]
[1724215254635,15.7101,142.93,142.88,45.0]
[1724215254942,15.7101,142.93,142.87,45.0]
[1724215255735,16.7101,142.93,142.87,45.0]
[1724215256246,15.7101,142.93,142.87,45.0]
[1724215257733,15.7101,142.93,142.88,1.39952074]
[1724215260514,16.7101,142.93,142.87,45.0]
[1724215260725,15.7101,142.93,142.87,45.0]
[1724215263638,15.7101,142.93,142.88,1.39951643]
[1724215265337,15.7101,142.93,142.87,45.0]
[1724215265643,15.7101,142.93,142.88,0.12549]
[1724215270918,15.7101,142.93,142.88,6.40975999]
[1724215271246,15.7101,142.93,142.89,45.0]
[1724215271819,15.7101,142.93,142.9,1.39938814]
[1724215272017,15.7101,142.93,142.9,14.56938814]
[1724215272243,15.7101,142.93,142.91,45.0]
[1724215272450,15.7101,142.93,142.92,1.39919163]
[1724215279339,15.7101,142.93,142.91,45.0]
[1724215283122,15.7101,142.93,142.88,13.29549]
[1724215283324,15.7101,142.93,142.89,71.40912984]
[1724215283526,15.7101,142.93,142.89,65.12549]
[1724215283833,15.7101,142.93,142.89,65.0]
[1724215290034,15.7101,142.93,142.89,45.0]
[1724215290231,15.7101,142.93,142.83,19.75896079]
[1724215290232,15.7101,142.93,142.86,13.17]
[1724215290451,15.7101,142.93,142.87,51.41094494]
[1724215290646,15.7101,142.93,142.88,6.28545494]
[1724215290959,15.7101,142.93,142.88,6.28544496]
[1724215292036,15.7101,142.93,142.88,6.28466963]
[1724215294743,15.7101,142.93,142.87,45.12549]
[1724215295668,15.7101,142.93,142.88,14.56948955]
[1724215295967,15.7101,142.93,142.89,45.0]
[1724215296836,15.7101,142.93,142.89,46.39944863]
[1724215297245,15.7101,142.93,142.9,1.39944836]
[1724215300468,15.7101,142.93,142.9,14.56944836]
[1724215300654,15.7101,142.93,142.91,45.0]
[1724215300850,15.7101,142.93,142.92,1.39922968]
[1724215303570,15.7101,142.93,142.91,45.0]
[1724215303780,15.7101,142.93,142.91,46.39923686]
[1724215309377,15.7101,142.93,142.91,45.0]
[1724215314148,15.7101,142.93,142.88,23.64595084]
[1724215314350,15.7101,142.93,142.89,71.53870502]
[1724215314555,15.7101,142.93,142.9,6.28772502]
[1724215317469,15.7101,142.93,142.89,65.25098]
[1724215317670,15.7101,142.93,142.9,6.28722446]
[1724215317874,15.7101,142.93,142.89,65.25098]
[1724215318046,15.7101,142.93,142.9,6.28702575]
[1724215318247,15.7101,142.93,142.89,75.59854573]
[1724215318248,15.7101,142.93,142.89,65.25098]
[1724215318548,15.7101,142.93,142.9,6.28702076]
[1724215318748,15.7101,142.93,142.89,65.25098]
[1724215318951,15.7101,142.93,142.9,6.28702076]
[1724215319282,15.7101,142.93,142.91,51.28595664]
[1724215319444,15.7101,142.93,142.91,45.0]
[1724215319649,15.7101,142.93,142.92,0.98948533]
[1724215320264,15.7101,142.93,142.92,1.3992003]
[1724215321053,15.7101,142.93,142.91,45.0]
[1724215321252,15.7101,142.93,142.9,45.0]
[1724215321579,15.7101,142.93,142.91,6.28616911]
[1724215321749,15.7101,142.93,142.92,45.0]
[1724215322180,15.7101,142.93,142.91,45.0]
[1724215322351,15.7101,142.93,142.9,45.0]
[1724215322552,15.7101,142.93,142.91,6.28635105]
[1724215322754,15.7101,142.93,142.92,45.0]
[1724215323659,15.7101,142.93,142.89,20.25098]
[1724215323862,15.7101,142.93,142.9,6.28628135]
[1724215324061,15.7101,142.93,142.91,6.28628135]
[1724215324275,15.7101,142.93,142.9,6.28628135]
[1724215324472,15.7101,142.93,142.91,6.28628135]
[1724215324656,15.7101,142.93,142.9,6.28628135]
[1724215324857,15.7101,142.93,142.91,6.28628135]
[1724215325071,15.7101,142.93,142.9,6.28628135]
[1724215325386,15.7101,142.93,142.91,6.28628135]
[1724215325557,15.7101,142.93,142.9,6.28628135]
[1724215325877,15.7101,142.93,142.91,6.28628135]
[1724215326077,15.7101,142.93,142.92,45.0]
[1724215326380,15.7101,142.93,142.91,45.0]
[1724215326564,15.7101,142.93,142.9,45.0]
[1724215326767,15.7101,142.93,142.91,6.28469213]
[1724215326967,15.7101,142.93,142.92,45.0]
[1724215328369,15.7101,142.93,142.89,30.59477357]
[1724215328681,15.7101,142.93,142.9,51.28480669]
[1724215328983,15.7101,142.93,142.9,45.0]
[1724215331674,15.7101,142.93,142.91,6.28449994]
[1724215333485,22.7582,143.0,142.92,1.39924841]
[1724215333677,35.9282,143.0,142.92,46.39924841]
[1724215334081,35.9282,143.0,142.92,1.39924841]
[1724215334993,35.9282,143.0,142.92,7.68121151]
[1724215335292,35.9282,143.0,142.93,45.0]
[1724215345297,1.0,142.99,142.93,45.0]
[1724215347097,16.4706,143.0,142.94,0.12549]
[1724215347296,16.4706,143.0,142.94,7.79883502]
[1724215347605,16.4706,143.0,142.95,45.0]
[1724215347900,16.4706,143.0,142.96,1.39880264]
[1724215348824,1.0,142.99,142.94,0.12549]
[1724215349006,1.0,142.99,142.93,71.40057667]
[1724215349173,29.6406,143.0,142.93,65.0]
[1724215349495,1.0,142.99,142.93,65.0]
[1724215349707,1.0,142.99,142.93,45.0]
[1724215349874,1.0,142.99,142.92,45.0]
[1724215351601,13.17,142.98,142.92,45.0]
[1724215351898,1.0,142.97,142.92,45.0]
[1724215355790,13.17,142.97,142.92,45.0]
[1724215357701,1.0,142.96,142.89,10.33020363]
[1724215357902,16.4457,142.96,142.9,71.40187778]
[1724215358090,1.0,142.95,142.91,6.27638778]
[1724215358291,16.4457,142.96,142.91,6.27638778]
[1724215360223,16.4457,142.96,142.9,65.12549]
[1724215360404,16.4457,142.96,142.91,7.67715649]
[1724215360405,15.4457,142.96,142.91,7.67715649]
[1724215360715,15.4457,142.96,142.91,1.39921621]
[1724215361795,15.4457,142.96,142.9,65.12549]
[1724215363593,15.4457,142.96,142.91,1.39921081]
[1724215364009,15.4457,142.96,142.9,65.12549]
[1724215364210,15.4457,142.96,142.91,1.39920404]
[1724215364605,15.4457,142.96,142.9,65.12549]
[1724215365413,15.4457,142.96,142.91,1.39921118]
[1724215365804,15.4457,142.96,142.9,65.12549]
[1724215366013,15.4457,142.96,142.91,1.39913228]
[1724215367099,15.4457,142.96,142.9,65.12549]
[1724215368112,16.4457,142.96,142.9,65.12549]
[1724215368513,15.4457,142.96,142.9,65.12549]
[1724215369427,15.4457,142.96,142.91,1.39821857]
[1724215370928,15.4457,142.96,142.9,65.12549]
[1724215374329,15.4457,142.96,142.91,1.39921586]
[1724215378716,15.4457,142.96,142.92,0.12549]
[1724215379634,15.4457,142.96,142.92,45.12549]
[1724215380133,15.4457,142.96,142.92,0.12549]
[1724215380334,16.3889,142.99,142.93,1.39896897]
[1724215380517,16.3889,142.99,142.93,46.39896897]
[1724215380835,16.3889,142.99,142.94,0.12549]
[1724215381009,16.3889,142.99,142.94,1.52429181]
[1724215383006,16.3889,142.99,142.94,0.12549]
[1724215383440,16.3889,142.99,142.94,34.8196828]
[1724215383736,16.3889,142.99,142.95,45.0]
[1724215383919,16.3889,142.99,142.96,1.52413441]
[1724215384232,16.3889,142.99,142.96,14.69413441]
[1724215384536,16.3889,142.99,142.97,45.0]
[1724215384762,6.0141,143.03,142.98,1.39858971]
[1724215384763,15.9077,143.02,142.98,1.39858971]
[1724215386740,15.9077,143.02,142.97,45.0]
[1724215389650,15.9077,143.02,142.98,1.39850369]
[1724215389934,16.4351,143.07,142.99,1.39846402]
[1724215390237,33.17,143.06,142.99,1.39846402]
[1724215391121,33.17,143.06,142.98,1.39837453]
[1724215391333,33.17,143.06,142.99,1.39838733]
[1724215391634,33.17,143.06,142.97,45.0]
[1724215391809,13.17,143.04,142.98,0.25098]
[1724215396831,13.17,143.04,142.98,1.64937043]
[1724215397616,13.17,143.04,142.98,0.25098]
[1724215398016,13.17,143.04,142.98,1.64937053]
[1724215399147,13.17,143.02,142.94,20.0]
[1724215399325,13.17,143.0,142.92,19.4079]
[1724215400851,13.17,143.0,142.93,45.12549]
[1724215401046,13.17,143.0,142.94,20.0]
[1724215401247,13.17,143.0,142.95,45.12549]
[1724215405122,13.17,143.0,142.95,45.0]
[1724215405936,1.0,142.99,142.91,12.6193]
[1724215406124,1.0,142.99,142.92,65.25098]
[1724215408038,13.17,143.0,142.92,65.25098]
[1724215409330,15.4317,142.99,142.92,65.25098]
[1724215410152,15.4317,142.99,142.92,78.42098]
[1724215410345,15.4317,142.99,142.93,1.39883458]
[1724215410545,15.4317,142.99,142.94,0.25098]
[1724215410752,15.4317,142.99,142.94,1.64961887]
[1724215412471,15.4317,142.99,142.94,0.25098]
[1724215412773,15.4317,142.99,142.95,0.12549]
[1724215412953,15.4317,142.99,142.93,0.25098]
[1724215417941,15.4317,142.99,142.94,13.17]
[1724215418145,15.4317,142.99,142.95,66.64956994]
[1724215418349,19.2769,143.03,142.96,1.3984921]
[1724215418544,15.0121,143.02,142.97,0.12549]
[1724215419154,15.0121,143.02,142.96,0.12549]
[1724215420837,15.0121,143.02,142.96,1.5224427]
[1724215421041,15.0121,143.02,142.97,1.39767478]
[1724215422845,15.0121,143.02,142.96,0.12549]
[1724215425945,15.0121,143.02,142.96,20.96146536]
[1724215426271,15.0121,143.02,142.97,45.0]
[1724215426272,13.17,143.01,142.97,45.0]
[1724215426479,13.17,143.01,142.96,0.12549]
[1724215426650,14.17,143.01,142.96,45.12549]
[1724215426977,13.17,143.01,142.96,45.12549]
[1724215429475,13.17,143.01,142.96,0.12549]
[1724215431399,13.17,143.01,142.96,1.5241184]
[1724215433779,13.17,143.01,142.96,0.12549]
[1724215436688,13.17,143.01,142.96,1.52333573]
[1724215437076,13.17,143.01,142.96,0.12549]
[1724215437270,21.6131,143.02,142.96,0.12549]
[1724215437571,21.6131,143.02,142.96,1.52263373]
[1724215440999,21.6131,143.02,142.96,0.12549]
[1724215451579,22.6131,143.02,142.96,0.12549]
[1724215451905,14.17,143.01,142.96,0.12549]
[1724215453383,13.17,143.01,142.96,0.12549]
[1724215460908,14.17,143.01,142.96,0.12549]
[1724215461110,14.17,143.01,142.95,45.12549]
[1724215461308,14.17,143.01,142.96,45.0]
[1724215461513,14.17,143.01,142.95,0.12549]
[1724215461697,14.17,143.01,142.95,20.25098]
[1724215461896,14.17,143.01,142.96,45.0]
[1724215462195,14.17,143.01,142.87,25.7893]
[1724215462196,13.17,142.97,142.87,25.7893]
[1724215462406,14.17,142.97,142.87,25.7893]
[1724215462713,14.17,142.97,142.87,13.17]
[1724215464186,14.17,142.97,142.88,45.25098]
[1724215465307,14.17,142.97,142.89,20.0]
[1724215465618,14.17,142.97,142.9,45.25098]
[1724215465817,14.17,142.97,142.91,20.0]
[1724215466024,14.17,142.97,142.92,45.0]
[1724215467407,13.17,142.97,142.92,45.0]
[1724215471621,16.0968,142.98,142.92,45.0]
[1724215472741,16.0968,142.98,142.93,1.39817585]
[1724215479136,16.0968,142.98,142.92,45.12549]
[1724215479137,16.0968,142.98,142.94,0.12549]
[1724215480350,16.0968,142.98,142.93,0.25098]
[1724215483028,16.0968,142.98,142.93,1.64977812]
[1724215483223,16.0968,142.98,142.93,21.64977812]
[1724215483428,16.0968,142.98,142.94,45.0]
[1724215483720,16.0968,142.98,142.95,1.52426473]
[1724215486918,16.0968,142.98,142.95,0.12549]
[1724215488553,16.0968,142.98,142.94,45.0]
[1724215489047,16.0968,142.98,142.93,20.0]
[1724215489219,13.17,142.97,142.9,20.0]
[1724215489419,13.17,142.97,142.89,20.0]
[1724215490545,13.17,142.97,142.9,45.25098]
[1724215490741,13.17,142.97,142.91,20.0]
[1724215491047,15.4659,142.95,142.92,45.12549]
[1724215491226,15.4659,142.95,142.92,45.0]
[1724215491424,15.4659,142.95,142.88,13.17]
[1724215492445,15.4659,142.95,142.89,20.0]
[1724215492623,15.4659,142.95,142.9,0.25098]
[1724215492828,15.4659,142.95,142.9,45.25098]
[1724215501968,1.0,142.94,142.89,20.0]
[1724215502130,28.9004,142.93,142.83,6.28797026]
[1724215502450,28.9004,142.93,142.85,13.17]
[1724215503534,28.9004,142.93,142.86,65.25098]
[1724215507243,15.7304,142.93,142.87,13.17]
[1724215507436,15.7304,142.93,142.88,46.39954345]
[1724215509476,15.7304,142.93,142.88,45.0]
[1724215514757,1.0,142.92,142.86,20.0]
[1724215514951,6.1288,142.91,142.86,20.0]
[1724215515174,6.1288,142.91,142.87,1.39857019]
[1724215515346,6.1288,142.91,142.86,20.0]
[1724215515856,6.1288,142.91,142.87,1.39964416]
[1724215516351,6.1288,142.91,142.87,46.39964416]
[1724215517174,15.7304,142.93,142.88,0.12549]
[1724215517480,15.7304,142.93,142.88,1.65037355]
[1724215519770,15.7304,142.93,142.89,13.17]
[1724215519978,15.7304,142.93,142.91,13.17]
[1724215520178,15.7304,142.93,142.92,1.39921175]
[1724215522061,15.7304,142.93,142.91,13.17]
[1724215522869,22.0084,143.01,142.91,13.17]
[1724215523173,15.3834,142.99,142.92,45.53748024]
[1724215523472,15.3834,142.99,142.93,1.39906014]
[1724215524876,1.0,142.98,142.92,45.12549]
[1724215525766,15.3834,142.99,142.92,45.12549]
[1724215527783,15.3834,142.99,142.93,1.39905917]
[1724215527973,15.3834,142.99,142.93,14.56905917]
[1724215528283,15.3834,142.99,142.94,45.0]
[1724215531073,1.0,142.98,142.94,45.0]
[1724215531278,1.0,142.98,142.92,0.25098]
[1724215531448,1.0,142.98,142.92,65.0]
[1724215532252,28.5534,142.99,142.92,65.0]
[1724215532970,28.5534,142.99,142.93,0.12549]
[1724215534952,15.3834,142.99,142.93,0.12549]
[1724215535156,15.3834,142.99,142.92,65.0]
[1724215535359,15.3834,142.99,142.93,1.39902381]
[1724215535955,15.3834,142.99,142.92,65.0]
[1724215536154,15.3834,142.99,142.93,1.39902804]
[1724215537780,15.3834,142.99,142.92,65.0]
[1724215544371,15.3834,142.99,142.93,1.39902398]
[1724215547092,15.3834,142.99,142.92,65.0]
[1724215547392,15.3834,142.99,142.93,1.39902617]
[1724215547803,14.17,142.98,142.92,65.0]
[1724215548006,13.17,142.98,142.93,1.39902629]
[1724215548187,15.3834,142.99,142.93,1.39902629]
[1724215548381,15.3834,142.99,142.92,65.0]
[1724215551685,1.0,142.98,142.92,65.0]
[1724215553707,15.3834,142.99,142.92,65.0]
[1724215555015,16.3834,142.99,142.92,65.0]
[1724215555214,1.0,142.98,142.92,65.0]
[1724215556311,1.0,142.98,142.92,45.0]
[1724215556520,1.0,142.98,142.91,45.12549]
[1724215556686,1.0,142.98,142.92,0.25098]
[1724215558309,14.17,142.98,142.88,13.17]
[1724215558516,13.17,142.96,142.89,20.0]
[1724215558706,1.0,142.95,142.89,20.0]
[1724215559008,13.17,142.96,142.89,20.0]
[1724215559816,13.17,142.96,142.9,45.0]
[1724215560387,1.0,142.95,142.9,45.0]
[1724215560619,13.17,142.96,142.9,45.0]
[1724215561505,1.0,142.95,142.9,45.0]
[1724215562826,13.17,142.96,142.9,45.0]
[1724215563799,22.5523,142.97,142.9,45.0]
[1724215564305,22.5523,142.97,142.91,1.39919455]
[1724215566811,22.5523,142.97,142.9,58.17]
[1724215567021,22.5523,142.97,142.91,0.12549]
[1724215568688,22.5523,142.97,142.91,21.52463887]
[1724215568916,22.5523,142.97,142.92,45.0]
[1724215569100,22.5523,142.97,142.93,1.39907895]
[1724215569297,22.5523,142.97,142.92,45.0]
[1724215577692,1.0,142.96,142.92,45.0]
[1724215578098,1.0,142.96,142.91,20.12549]
[1724215578099,1.0,142.96,142.91,20.0]
[1724215578310,1.0,142.96,142.89,20.0]
[1724215579616,22.5523,142.97,142.9,45.12549]
[1724215580905,22.5523,142.97,142.91,1.39921317]
[1724215582908,22.5523,142.97,142.9,58.42098]
[1724215583100,22.5523,142.97,142.91,0.12549]
[1724215588935,22.5523,142.97,142.91,1.52458877]
[1724215590334,22.5523,142.97,142.91,0.12549]
[1724215590710,22.5523,142.97,142.91,1.52458923]
[1724215591117,22.5523,142.97,142.92,0.12549]
[1724215591329,22.5523,142.97,142.92,13.29549]
[1724215591632,22.5523,142.97,142.93,45.0]
[1724215594113,22.5523,142.97,142.94,1.52438674]
[1724215596026,22.5523,142.97,142.94,0.12549]
[1724215597629,22.5523,142.97,142.89,20.0]
[1724215597832,22.5523,142.97,142.88,13.17]
[1724215597833,1.0,142.96,142.88,13.17]
[1724215599125,1.0,142.96,142.89,20.0]
[1724215600137,1.0,142.96,142.9,45.25098]
[1724215603531,16.3583,142.95,142.9,45.25098]
[1724215611161,1.0,142.94,142.9,45.12549]
[1724215611525,17.3583,142.95,142.9,45.12549]
[1724215617151,17.3583,142.95,142.9,0.12549]
[1724215619244,17.3583,142.95,142.82,36.46354101]
[1724215619245,35.2129,142.94,142.82,12.59874602]
[1724215619428,15.5041,142.92,142.85,13.17]
[1724215620844,15.5041,142.92,142.86,65.25098]
[1724215621752,35.1875,142.91,142.8,9.99171919]
[1724215622047,13.17,142.85,142.8,7.26670875]
[1724215622252,13.17,142.85,142.76,13.17]
[1724215623061,22.0175,142.86,142.76,13.17]
[1724215623234,22.0175,142.86,142.78,13.17]
[1724215623235,1.0,142.85,142.78,13.17]
[1724215623730,1.0,142.85,142.79,20.0]
[1724215625835,22.0175,142.86,142.8,45.0]
[1724215626031,22.0175,142.86,142.81,20.0]
[1724215626251,22.0175,142.86,142.75,7.26909454]
[1724215626252,1.0,142.85,142.75,7.26909454]
[1724215626458,13.17,142.84,142.76,13.17]
[1724215626647,1.0,142.83,142.76,13.17]
[1724215627167,6.4521,142.81,142.74,13.17]
[1724215627341,1.0,142.8,142.74,13.17]
[1724215628271,6.4521,142.81,142.76,13.17]
[1724215628458,16.714,142.8,142.71,7.26943152]
[1724215628651,1.0,142.79,142.74,13.17]
[1724215629852,1.0,142.79,142.75,20.0]
[1724215631068,15.714,142.8,142.75,20.0]
[1724215632050,15.714,142.8,142.74,20.0]
[1724215633836,15.714,142.8,142.74,13.17]
[1724215634037,15.714,142.8,142.75,20.0]
[1724215635373,15.714,142.8,142.75,13.17]
[1724215635570,15.714,142.8,142.76,20.0]
[1724215636977,1.0,142.79,142.76,20.0]
[1724215637473,15.714,142.8,142.76,20.0]
[1724215645654,15.714,142.8,142.77,13.17]
[1724215648852,15.714,142.8,142.77,14.57082007]
[1724215649777,15.714,142.8,142.77,13.17]
[1724215651176,15.714,142.8,142.79,13.17]
[1724215652354,15.714,142.8,142.78,45.0]
[1724215652672,15.714,142.8,142.77,58.17]
[1724215652871,15.714,142.8,142.78,20.0]
[1724215659788,15.714,142.8,142.77,13.17]
[1724215666380,15.714,142.8,142.78,45.0]
[1724215677314,1.0,142.84,142.78,45.0]
[1724215677315,15.3783,142.84,142.78,45.0]
[1724215677621,15.3783,142.84,142.79,13.17]
[1724215678017,15.3783,142.84,142.81,13.17]
[1724215680087,15.3783,142.84,142.82,1.52571626]